bitfinex/quotes_ETHUSD_20260120
["timestamp","ask_amount","ask_price","bid_price","bid_amount"]
[1768923932441,12.75240878,3029.3,3027.5,12.93480977]
[1768923932629,0.001,3029.3,3027.5,12.93480977]
[1768923932830,0.001,3029.3,3027.7,12.93480977]
[1768923933148,0.001,3029.3,3027.8,6.6054561]
[1768923933353,0.001,3029.3,3027.9,12.93480977]
[1768923935050,0.001,3029.3,3028.1,12.93480977]
[1768923935550,0.001,3029.3,3028.2,6.60458358]
[1768923935755,0.001,3029.3,3028.3,13.59526813]
[1768923935953,12.75140878,3030.1,3028.4,12.93480977]
[1768923936256,12.75140878,3029.8,3028.6,12.93480977]
[1768923936627,12.75140878,3029.8,3028.6,13.44280977]
[1768923937654,12.75140878,3029.8,3028.6,16.74455847]
[1768923937856,17.96265082,3029.8,3028.7,2.00465216]
[1768923938074,12.75140878,3029.7,3028.6,13.44280977]
[1768923938230,13.21753205,3029.7,3028.6,0.508]
[1768923938430,12.75140878,3029.4,3028.3,12.93480977]
[1768923938629,12.75140878,3029.4,3028.4,0.508]
[1768923938865,14.66209467,3029.3,3028.4,0.508]
[1768923939527,12.75140878,3029.1,3028.0,16.23731503]
[1768923939728,13.25540878,3029.1,3027.7,12.93480977]
[1768923939967,13.25540878,3029.1,3028.0,16.23730684]
[1768923940171,12.75140878,3029.1,3028.0,16.23730684]
[1768923940378,12.75140878,3029.1,3028.1,1.95398286]
[1768923940379,14.26801825,3029.1,3028.1,1.95398286]
[1768923940679,1.51660947,3029.1,3028.1,14.88879263]
[1768923940864,1.91068589,3029.3,3028.1,14.88879263]
[1768923941260,1.91068589,3029.3,3028.3,0.002]
[1768923941580,16.0527194,3029.1,3028.3,0.51]
[1768923941788,12.75140878,3029.1,3028.3,0.51]
[1768923942107,12.75140878,3029.1,3028.3,0.002]
[1768923942397,14.68679797,3029.0,3028.3,0.002]
[1768923943037,14.68679797,3029.0,3028.0,0.51]
[1768923943254,12.75140878,3028.6,3027.2,12.93480977]
[1768923943452,12.75140878,3028.6,3027.3,0.508]
[1768923943685,12.18983006,3028.5,3027.4,3.30316373]
[1768923943881,1.54916917,3028.4,3027.4,3.30316373]
[1768923944048,12.18983006,3028.5,3027.4,3.30316373]
[1768923944251,12.18983006,3028.5,3027.3,3.81121831]
[1768923944452,12.18983006,3028.5,3027.3,0.508]
[1768923945258,12.18983006,3028.5,3026.9,15.29094061]
[1768923945455,12.21165973,3028.2,3027.1,0.508]
[1768923945664,12.21165973,3028.0,3027.1,0.508]
[1768923945872,15.51419402,3028.0,3027.1,0.508]
[1768923946481,12.21165973,3028.0,3027.1,0.508]
[1768923946692,1.85671098,3028.1,3027.1,3.81146486]
[1768923946854,1.85671098,3028.1,3027.2,11.98728479]
[1768923947054,12.21165973,3028.6,3027.2,11.98728479]
[1768923947264,0.504,3028.8,3027.2,11.98728479]
[1768923947488,12.71565973,3028.8,3027.2,11.98728479]
[1768923947695,12.21165973,3028.4,3027.3,0.508]
[1768923947906,14.09321864,3028.3,3027.3,0.508]
[1768923948080,12.21165973,3028.2,3026.7,11.98928479]
[1768923948259,12.21165973,3028.2,3026.9,0.508]
[1768923948894,6.3554501,3027.9,3026.7,0.002]
[1768923949061,12.21165973,3027.8,3026.7,0.51]
[1768923949882,15.51448107,3027.8,3026.7,0.51]
[1768923950067,12.21165973,3027.7,3026.7,0.51]
[1768923950268,12.21165973,3027.7,3026.7,3.81389783]
[1768923950469,1.22116597,3027.6,3026.7,0.51]
[1768923950664,1.22116597,3027.6,3026.7,19.1051252]
[1768923950879,12.21165973,3027.7,3026.7,15.80119683]
[1768923951104,12.21165973,3027.7,3026.7,3.30591204]
[1768923951407,12.21165973,3027.7,3026.8,0.508]
[1768923952364,12.21165973,3027.6,3026.7,0.002]
[1768923952796,12.21165973,3027.6,3026.5,0.002]
[1768923952797,12.21165973,3027.4,3026.5,0.002]
[1768923952991,12.21165973,3027.2,3026.5,0.002]
[1768923953395,12.21165973,3027.5,3026.6,3.30401974]
[1768923953697,0.505,3027.9,3026.8,15.291104]
[1768923953901,12.71665973,3027.9,3026.8,15.291104]
[1768923954070,12.71665973,3027.9,3027.0,0.002]
[1768923954071,12.21165973,3027.8,3027.0,0.002]
[1768923954271,1.60192954,3027.7,3027.0,0.002]
[1768923954796,13.81358927,3027.7,3026.6,0.51]
[1768923955199,13.81358927,3027.7,3026.6,0.002]
[1768923955400,1.60192954,3027.7,3026.7,15.29115143]
[1768923955573,0.505,3027.8,3026.7,11.98728479]
[1768923956103,16.01938971,3027.8,3026.7,11.98728479]
[1768923956303,12.71665973,3027.8,3026.7,11.98728479]
[1768923956604,12.71665973,3027.8,3026.7,15.29121316]
[1768923956903,12.21165973,3027.8,3026.7,15.29121316]
[1768923957082,1.60193418,3027.7,3026.7,11.98728479]
[1768923957277,1.60193418,3027.7,3026.7,15.29115081]
[1768923957681,1.60193418,3027.7,3026.7,15.29120211]
[1768923957886,1.60193418,3027.7,3026.6,3.81398157]
[1768923957887,13.81359391,3027.7,3026.6,3.81398157]
[1768923958080,17.11654013,3027.7,3026.6,0.51]
[1768923958280,17.11654013,3027.7,3026.7,0.509]
[1768923958281,14.25358665,3027.6,3026.7,0.509]
[1768923958794,2.04192692,3027.6,3026.7,12.49628479]
[1768923958994,15.51433451,3027.9,3026.7,12.49628479]
[1768923959176,12.21165973,3027.9,3026.7,12.49628479]
[1768923959371,15.51430818,3027.9,3026.7,12.49628479]
[1768923959816,12.21165973,3027.9,3026.7,12.49628479]
[1768923960002,12.21165973,3027.9,3026.8,3.30381921]
[1768923960325,13.81358203,3027.8,3026.6,0.002]
[1768923960485,12.21165973,3027.3,3026.4,0.002]
[1768923961778,12.21165973,3027.3,3026.4,3.30618607]
[1768923961976,0.505,3027.4,3026.4,3.30618607]
[1768923962176,12.71665973,3027.4,3026.4,0.002]
[1768923962384,1.60197378,3027.3,3026.4,0.002]
[1768923962598,1.6019223,3027.8,3026.4,12.02232734]
[1768923962776,0.505,3027.8,3026.4,11.98928479]
[1768923962979,12.21165973,3027.7,3026.5,0.509]
[1768923963206,12.21165973,3027.7,3026.4,11.98928479]
[1768923963387,12.21165973,3027.7,3026.4,12.49828479]
[1768923963588,7.11045738,3027.8,3026.4,0.511]
[1768923963589,12.21165973,3027.5,3026.4,0.511]
[1768923964010,12.21165973,3027.3,3026.4,0.002]
[1768923964400,5.23523483,3027.6,3026.4,0.002]
[1768923964401,0.505,3027.5,3026.4,11.98928479]
[1768923964607,12.71665973,3027.5,3026.4,11.98928479]
[1768923965112,12.71665973,3027.5,3026.4,0.002]
[1768923965311,12.21165973,3027.3,3026.4,0.002]
[1768923965534,12.21165973,3027.3,3026.1,0.002]
[1768923965677,12.21165973,3027.0,3026.1,0.002]
[1768923965891,0.505,3026.9,3026.1,11.98928479]
[1768923966091,2.06537335,3027.4,3026.3,11.98728479]
[1768923966291,12.71665973,3027.9,3026.7,0.002]
[1768923966533,0.001,3027.4,3026.7,0.002]
[1768923969231,12.21265973,3027.4,3026.4,0.002]
[1768923969399,13.4834257,3027.3,3026.4,0.002]
[1768923970497,13.4834257,3027.3,3026.2,3.41541982]
[1768923971032,16.78671659,3027.3,3026.2,0.111]
[1768923971236,12.21165973,3027.1,3026.1,0.002]
[1768923971399,12.21165973,3026.9,3026.0,0.002]
[1768923972530,0.506,3027.4,3026.2,11.98728479]
[1768923972893,3.80924213,3027.4,3026.2,11.98728479]
[1768923973145,0.506,3027.4,3026.2,11.98728479]
[1768923973329,3.80917579,3027.4,3026.2,11.98728479]
[1768923973537,1.60208355,3027.3,3026.2,13.23711327]
[1768923973757,0.001,3027.4,3026.2,13.23711327]
[1768923973908,0.001,3027.4,3026.3,0.509]
[1768923974115,0.001,3027.4,3026.5,15.29143149]
[1768923975002,0.001,3027.4,3026.5,11.98728479]
[1768923975214,11.88619012,3027.4,3026.0,3.3066007]
[1768923975439,11.88619012,3027.4,3026.0,5.67179453]
[1768923975950,11.88619012,3027.4,3026.0,12.46153078]
[1768923976109,11.88519012,3026.8,3025.4,11.95253078]
[1768923976437,12.39019012,3026.7,3025.4,12.46153078]
[1768923976825,12.39019012,3026.7,3025.4,11.95253078]
[1768923977072,12.39019012,3026.7,3025.4,0.002]
[1768923977206,11.88519012,3026.3,3025.1,11.95253078]
[1768923977412,0.505,3026.2,3025.1,11.95253078]
[1768923977728,13.12420913,3026.6,3025.1,12.46153078]
[1768923977928,13.62920913,3026.6,3025.4,11.95053078]
[1768923978130,15.18933682,3026.5,3025.1,11.95253078]
[1768923978336,13.5785257,3026.4,3025.2,0.509]
[1768923978521,13.5785257,3026.4,3025.1,0.511]
[1768923978912,13.5785257,3026.4,3025.3,15.25594126]
[1768923979147,0.505,3026.3,3025.3,15.25594126]
[1768923979372,15.18847898,3027.3,3025.5,11.95053078]
[1768923979643,2.0239479,3027.2,3025.7,11.95053078]
[1768923979850,1.5189479,3027.2,3025.8,11.95053078]
[1768923980044,0.505,3027.5,3025.8,11.95053078]
[1768923980216,11.88519012,3027.1,3025.6,2.18665395]
[1768923980419,11.88519012,3027.1,3025.4,11.95253078]
[1768923980420,11.88519012,3026.8,3025.4,0.511]
[1768923981224,11.88519012,3026.7,3025.4,0.511]
[1768923981729,11.88519012,3026.2,3025.1,0.002]
[1768923981975,6.90208015,3026.3,3025.1,0.002]
[1768923981976,11.88519012,3026.0,3025.1,0.002]
[1768923982259,15.18999199,3025.9,3025.1,0.002]
[1768923982622,11.88519012,3025.8,3025.0,0.002]
[1768923983262,11.88519012,3025.8,3024.3,0.002]
[1768923983263,11.88519012,3025.7,3024.3,0.002]
[1768923983423,11.88519012,3025.3,3024.3,0.002]
[1768923983620,0.506,3025.3,3024.3,11.95253078]
[1768923984340,12.39119012,3025.3,3024.3,0.002]
[1768923984651,15.69666008,3025.3,3024.3,0.002]
[1768923984954,1.87872703,3025.6,3024.3,3.30850362]
[1768923985156,1.37639172,3025.5,3024.4,11.95053078]
[1768923985472,3.81122801,3025.6,3024.4,11.95053078]
[1768923985824,11.88519012,3025.5,3024.3,0.002]
[1768923986334,15.19047798,3025.5,3024.3,0.002]
[1768923986543,11.88519012,3025.4,3024.3,0.002]
[1768923988057,0.506,3025.3,3024.3,0.002]
[1768923988253,1.23911901,3025.2,3024.3,0.002]
[1768923988825,4.54471986,3025.2,3024.3,0.002]
[1768923989020,1.23911901,3025.2,3024.3,11.95253078]
[1768923989288,11.88519012,3025.7,3024.4,11.95053078]
[1768923989563,0.128,3026.2,3024.4,12.45953078]
[1768923989564,11.88519012,3026.2,3024.4,12.45953078]
[1768923989728,11.88519012,3026.5,3024.4,12.45953078]
[1768923989918,11.88519012,3026.9,3024.8,11.95053078]
[1768923990123,0.506,3026.8,3025.0,11.95053078]
[1768923990323,1.56949454,3026.7,3025.4,11.95053078]
[1768923990618,1.56949454,3026.7,3025.3,6.61091462]
[1768923990619,0.001,3027.4,3025.6,11.95053078]
[1768923990839,11.88519012,3027.2,3025.6,11.95053078]
[1768923991040,11.88519012,3027.0,3025.6,12.46053078]
[1768923991362,11.88519012,3027.0,3025.3,3.30545731]
[1768923991363,11.88519012,3027.0,3025.3,15.76598809]
[1768923991563,11.88519012,3027.0,3025.4,11.95053078]
[1768923991763,1.18851901,3026.9,3025.5,13.85767532]
[1768923991935,0.506,3026.8,3025.5,13.85767532]
[1768923992264,11.88519012,3026.7,3025.3,0.51]
[1768923992453,7.40808015,3026.8,3025.3,0.51]
[1768923992454,11.88519012,3026.5,3025.3,0.51]
[1768923993354,0.001,3026.5,3025.3,3.30545731]
[1768923993664,0.001,3026.5,3025.4,12.46053078]
[1768923993878,0.001,3026.5,3025.5,13.85767532]
[1768923994435,0.001,3026.5,3025.5,17.16288608]
[1768923994880,0.001,3026.5,3025.5,20.46812488]
[1768923995034,0.001,3026.5,3025.5,8.5175941]
[1768923995233,0.128,3027.5,3025.6,11.95053078]
[1768923995234,3.30315019,3027.5,3025.6,11.95053078]
[1768923995478,11.88519012,3027.7,3025.6,11.95053078]
[1768923995648,0.506,3027.5,3025.6,11.95053078]
[1768923995857,3.80912694,3027.5,3025.6,11.95053078]
[1768923996183,11.88519012,3027.7,3025.6,11.95053078]
[1768923996382,11.88519012,3028.1,3026.1,11.95053078]
[1768923996554,11.88519012,3028.1,3026.3,11.95053078]
[1768923996555,0.506,3027.9,3026.3,11.95053078]
[1768923997782,0.506,3027.9,3026.2,0.51]
[1768923997783,11.88519012,3027.8,3026.2,0.51]
[1768923997982,0.507,3027.4,3026.2,0.51]
[1768923998182,12.39219012,3027.4,3025.5,11.95053078]
[1768923998483,11.88519012,3026.9,3025.5,16.96079958]
[1768923998686,3.30360092,3027.0,3025.6,11.95053078]
[1768923998871,1.23921901,3027.3,3025.6,11.95053078]
[1768923999071,0.001,3027.4,3025.6,11.95053078]
[1768924000492,0.001,3027.4,3025.8,11.95053078]
[1768924002568,0.001,3027.4,3025.9,18.56013452]
[1768924002769,0.001,3027.4,3026.0,0.51]
[1768924003183,0.001,3027.4,3025.9,15.25533265]
[1768924003184,11.88619012,3027.4,3025.9,15.25533265]
[1768924003403,13.73442809,3027.3,3026.1,0.51]
[1768924004792,13.73442809,3027.3,3026.0,1.856022]
[1768924004793,3.30338266,3027.2,3026.0,5.67070016]
[1768924004979,1.84923797,3027.3,3026.1,12.01658672]
[1768924005309,0.001,3027.4,3026.1,12.01658672]
[1768924005483,0.001,3027.4,3026.2,0.51]
[1768924005881,0.001,3027.1,3026.2,0.51]
[1768924006086,0.001,3027.1,3026.1,12.01658672]
[1768924006292,0.001,3027.1,3026.1,12.52658672]
[1768924006591,0.001,3027.1,3026.2,2.09919795]
[1768924007507,0.001,3027.1,3026.3,12.01658672]
[1768924008808,0.001,3027.1,3026.3,12.52658672]
[1768924009110,0.001,3027.1,3026.2,2.09919795]
[1768924009302,0.001,3027.1,3026.2,2.60919795]
[1768924009628,13.17569851,3027.1,3026.2,0.51]
[1768924009806,13.17569851,3027.1,3026.0,0.51]
[1768924010879,13.17569851,3027.1,3026.0,3.81468948]
[1768924011082,1.19879077,3027.1,3026.1,12.01658672]
[1768924011283,0.001,3027.1,3026.1,12.01658672]
[1768924013215,0.001,3027.1,3026.2,18.62553522]
[1768924013422,0.001,3027.1,3026.3,12.01658672]
[1768924013713,0.001,3027.4,3026.3,12.01658672]
[1768924015206,0.001,3027.4,3026.4,6.60851176]
[1768924015395,0.001,3027.4,3026.5,2.37250985]
[1768924015717,0.001,3027.4,3026.6,12.04962709]
[1768924015930,11.97690774,3028.1,3026.7,12.01658672]
[1768924016089,11.97690774,3028.4,3026.7,12.01658672]
[1768924016423,1.19769077,3028.3,3026.9,12.01658672]
[1768924016622,11.97690774,3028.2,3026.9,12.01658672]
[1768924016785,11.97690774,3028.2,3026.6,12.52658672]
[1768924017187,11.97690774,3028.0,3026.7,0.51]
[1768924017633,6.60480168,3028.1,3026.7,0.51]
[1768924017634,13.17459851,3028.3,3026.7,12.52658672]
[1768924017928,1.19769077,3028.3,3026.9,12.01658672]
[1768924018128,11.97690774,3028.6,3026.9,12.01658672]
[1768924018440,12.48290774,3028.6,3026.9,12.01658672]
[1768924018615,12.31707886,3028.6,3027.1,12.01658672]
[1768924018813,12.31707886,3028.6,3027.3,12.01658672]
[1768924019116,9.64103564,3029.4,3027.3,12.01658672]
[1768924019117,12.10490774,3029.3,3027.3,12.01658672]
[1768924019315,11.97690774,3029.0,3027.6,12.01658672]
[1768924019530,11.97690774,3029.0,3027.7,12.52658672]
[1768924019708,11.97690774,3029.0,3027.7,12.01658672]
[1768924020102,11.97690774,3029.0,3027.8,0.51]
[1768924020510,0.506,3029.1,3027.8,12.52658672]
[1768924020807,1.73247034,3029.1,3027.9,13.26924539]
[1768924021010,11.97690774,3029.3,3027.9,13.26924539]
[1768924021325,11.97690774,3029.2,3027.9,16.57176687]
[1768924021648,15.27778247,3029.5,3028.0,12.01658672]
[1768924021800,11.97690774,3029.5,3028.0,12.01658672]
[1768924022232,11.97690774,3029.5,3027.9,4.5552644]
[1768924022433,11.97690774,3029.3,3028.0,0.51]
[1768924022631,1.88540329,3029.4,3028.0,12.52658672]
[1768924022802,13.86231103,3029.4,3028.0,12.52658672]
[1768924023002,13.86231103,3029.4,3028.0,12.01658672]
[1768924023198,11.97690774,3029.1,3027.5,12.01658672]
[1768924023423,11.97690774,3028.7,3027.4,1.76265867]
[1768924023623,11.97690774,3028.7,3027.3,0.51]
[1768924024231,11.97690774,3028.7,3026.9,15.3202058]
[1768924024411,11.97690774,3028.7,3027.0,12.52658672]
[1768924024812,11.97690774,3028.7,3027.1,12.01658672]
[1768924025113,11.97690774,3028.7,3027.4,12.01658672]
[1768924025321,1.19769077,3028.6,3027.5,13.21824539]
[1768924025505,4.49954869,3028.6,3027.6,0.00712139]
[1768924025708,1.19769077,3028.6,3027.6,0.00712139]
[1768924026339,11.97690774,3029.9,3027.6,12.04961618]
[1768924026642,11.97690774,3029.5,3027.6,12.01658672]
[1768924026844,11.97690774,3029.8,3027.8,12.01658672]
[1768924027003,11.97690774,3029.8,3028.1,12.01658672]
[1768924027208,11.97690774,3029.8,3028.5,12.01658672]
[1768924027409,11.97690774,3029.8,3028.4,6.6041474]
[1768924027410,11.97690774,3030.1,3028.6,13.87866013]
[1768924027738,18.57738024,3030.1,3028.8,12.01658672]
[1768924027907,11.97690774,3030.0,3028.9,0.51]
[1768924028114,0.506,3030.3,3028.9,12.52658672]
[1768924028313,11.97690774,3030.4,3028.9,12.52658672]
[1768924028544,12.48290774,3030.8,3029.1,12.01658672]
[1768924029041,11.97690774,3030.8,3029.1,12.01658672]
[1768924029237,15.27637598,3030.8,3029.1,12.01658672]
[1768924029462,15.27637598,3030.8,3029.3,12.01658672]
[1768924029738,11.97690774,3030.6,3029.4,0.51]
[1768924029942,11.97690774,3030.4,3029.4,0.51]
[1768924030117,11.97690774,3030.4,3028.7,12.01658672]
[1768924030324,2.38449895,3030.5,3028.4,12.01658672]
[1768924030325,11.97690774,3030.0,3028.4,12.01658672]
[1768924030618,11.97690774,3029.6,3028.1,12.01658672]
[1768924030822,11.97690774,3029.6,3028.2,3.81222459]
[1768924031023,1.19769077,3029.5,3028.3,1.58288113]
[1768924031338,1.19769077,3029.5,3028.3,4.88503017]
[1768924031706,1.19769077,3029.5,3028.4,12.01658672]
[1768924032013,15.27726714,3030.0,3028.4,12.01658672]
[1768924032341,3.3003594,3030.0,3028.4,12.01658672]
[1768924032712,0.001,3030.3,3028.7,12.01658672]
[1768924032943,0.001,3030.3,3028.3,14.79157839]
[1768924032944,0.001,3030.3,3028.9,12.01658672]
[1768924033440,0.001,3030.3,3029.0,3.30141961]
[1768924033641,0.33107855,3030.3,3029.1,13.87853104]
[1768924034013,0.001,3030.3,3029.1,13.87853104]
[1768924035512,0.001,3030.3,3029.2,6.60240326]
[1768924035735,0.001,3030.3,3029.3,12.97797431]
[1768924035951,0.001,3030.3,3029.4,0.51]
[1768924036118,0.001,3030.3,3029.4,13.48797431]
[1768924036321,0.001,3030.3,3029.5,14.32677174]
[1768924036941,0.001,3030.3,3029.6,0.51]
[1768924037459,12.3081494,3030.3,3028.4,12.97797431]
[1768924037614,12.3071494,3030.1,3028.5,16.78993897]
[1768924037911,14.19788678,3030.0,3028.6,14.98716544]
[1768924038641,14.19788678,3030.0,3028.5,0.51]
[1768924038642,12.8131494,3029.9,3028.5,0.51]
[1768924038841,12.8131494,3029.9,3028.2,16.28025752]
[1768924039045,12.8131494,3029.9,3028.3,0.51]
[1768924039623,12.3071494,3029.4,3028.1,0.51]
[1768924039930,12.3071494,3029.2,3027.9,0.002]
[1768924041127,0.506,3029.2,3028.0,3.30242174]
[1768924041473,12.3071494,3029.6,3028.3,16.28015705]
[1768924041621,15.60797243,3029.6,3028.4,0.51]
[1768924042349,18.90879546,3029.6,3028.4,0.51]
[1768924042554,14.24862895,3029.5,3028.4,0.51]
[1768924042751,14.24862895,3029.5,3028.3,0.51]
[1768924043337,0.001,3028.9,3028.3,0.51]
[1768924043542,0.001,3028.9,3027.9,0.002]
[1768924043728,0.001,3028.9,3028.3,0.51]
[1768924043937,0.001,3028.9,3028.2,0.51]
[1768924046219,0.001,3028.9,3028.2,17.17149838]
[1768924046452,0.506,3029.9,3028.3,12.97797431]
[1768924046966,0.506,3029.9,3028.5,12.97797431]
[1768924047125,12.8131494,3029.9,3028.5,12.97797431]
[1768924047358,12.3071494,3029.7,3028.5,1.29779743]
[1768924047580,12.3071494,3029.7,3028.6,0.51]
[1768924048164,12.3071494,3029.5,3028.6,0.51]
[1768924048370,12.3071494,3029.5,3028.2,13.48797431]
[1768924048675,0.506,3029.7,3028.4,12.97797431]
[1768924049263,0.506,3029.7,3028.5,3.301891]
[1768924049466,0.5087927,3029.6,3028.6,1.62798653]
[1768924049986,1.28131494,3029.8,3028.7,0.51]
[1768924050191,1.28131494,3029.8,3028.7,3.81169365]
[1768924050698,4.58189562,3029.8,3028.7,0.51]
[1768924050863,12.3071494,3029.7,3028.7,0.51]
[1768924051053,12.3071494,3029.7,3028.0,16.28044676]
[1768924051249,14.32611197,3029.6,3028.4,3.30198377]
[1768924051482,14.32611197,3029.6,3028.3,3.30217233]
[1768924051483,14.32611197,3029.6,3028.5,3.30189854]
[1768924051785,14.32611197,3029.6,3028.5,3.3019274]
[1768924052576,14.32611197,3029.6,3028.4,3.3020737]
[1768924052962,12.3071494,3030.0,3028.5,12.97797431]
[1768924053159,12.3071494,3030.0,3028.6,13.48797431]
[1768924053464,3.2997357,3030.6,3028.8,12.97797431]
[1768924053760,3.80582515,3030.5,3028.8,12.97797431]
[1768924053963,0.506,3030.5,3028.8,12.97797431]
[1768924054186,12.3071494,3030.7,3028.8,12.97797431]
[1768924054373,16.11272273,3030.7,3028.8,12.97797431]
[1768924054584,3.2998244,3030.5,3028.9,6.6030572]
[1768924054781,3.2998244,3030.5,3029.0,12.97797431]
[1768924054984,3.29970758,3030.6,3029.1,15.44607746]
[1768924055818,12.8131494,3030.7,3029.1,15.44607746]
[1768924056160,0.001,3029.3,3029.2,13.01016268]
[1768924056392,12.3081494,3030.3,3029.1,1.95810315]
[1768924056568,3.30033003,3030.0,3028.9,0.51]
[1768924056774,12.3071494,3029.9,3028.9,0.51]
[1768924057672,12.3071494,3029.9,3028.9,3.81151425]
[1768924057870,12.3071494,3029.9,3028.4,0.51]
[1768924058060,12.3071494,3029.5,3027.9,0.002]
[1768924058262,13.20099754,3030.1,3027.9,0.002]
[1768924058263,12.3071494,3029.1,3027.9,0.002]
[1768924058474,12.3071494,3028.9,3027.9,0.002]
[1768924058695,12.3071494,3028.7,3027.5,0.002]
[1768924059372,12.3071494,3028.0,3026.6,0.002]
[1768924059583,12.3071494,3027.8,3026.6,0.002]
[1768924059778,12.3071494,3027.6,3026.6,0.002]
[1768924059980,12.8141494,3027.6,3026.6,0.002]
[1768924060799,0.29831497,3029.2,3026.6,0.002]
[1768924060800,0.507,3027.8,3026.6,0.002]
[1768924061694,12.8141494,3027.8,3026.6,0.002]
[1768924062768,12.3071494,3027.6,3026.6,0.002]
[1768924062971,1.89128237,3027.5,3026.6,0.002]
[1768924063287,0.507,3027.7,3026.6,0.002]
[1768924063891,3.3025099,3028.0,3026.6,0.002]
[1768924064206,0.507,3027.9,3026.6,0.002]
[1768924064771,3.8096908,3027.9,3026.6,0.002]
[1768924065305,15.28653469,3028.4,3026.7,12.87986585]
[1768924065603,0.33021064,3028.3,3026.8,15.31516495]
[1768924066678,15.28605022,3028.8,3027.1,12.87986585]
[1768924066911,18.58773596,3028.8,3027.2,16.18324851]
[1768924067123,11.98436448,3028.7,3026.8,14.80516495]
[1768924067317,11.98436448,3028.4,3026.9,0.51]
[1768924067519,11.98436448,3028.2,3026.9,0.51]
[1768924067742,11.98436448,3028.2,3026.6,0.002]
[1768924067882,11.98436448,3027.8,3026.6,0.002]
[1768924068076,11.98436448,3027.6,3026.6,0.002]
[1768924068399,11.98436448,3027.2,3025.9,0.002]
[1768924068586,11.98436448,3027.0,3025.9,0.002]
[1768924068981,18.5917846,3026.9,3025.9,0.002]
[1768924069215,11.98436448,3026.9,3025.9,0.002]
[1768924069426,5.97253281,3027.1,3025.9,0.002]
[1768924069582,7.11399342,3027.1,3025.9,0.002]
[1768924069913,12.49136448,3027.2,3025.9,0.002]
[1768924070129,11.98436448,3027.2,3025.9,0.002]
[1768924070289,15.79474782,3027.2,3025.9,0.002]
[1768924070823,0.507,3027.3,3025.9,0.002]
[1768924071328,0.507,3027.3,3026.9,0.002]
[1768924071995,15.79437705,3027.6,3026.9,0.002]
[1768924072310,0.507,3027.8,3026.9,0.002]
[1768924073321,3.30283713,3027.7,3026.9,0.002]
[1768924073620,11.98436448,3027.6,3026.3,0.511]
[1768924073823,13.89406534,3027.6,3026.3,0.511]
[1768924074379,11.98436448,3027.3,3026.0,0.66338222]
[1768924074581,11.98436448,3027.1,3026.0,0.002]
[1768924075198,6.60720184,3027.0,3026.0,0.002]
[1768924075696,3.30360092,3027.0,3026.0,0.002]
[1768924076317,0.507,3027.3,3026.0,0.002]
[1768924076523,2.08645289,3027.3,3026.0,2.03551349]
[1768924076691,13.56381737,3027.3,3026.0,14.88233242]
[1768924077010,3.30295584,3027.6,3026.1,12.87986585]
[1768924077210,3.30295584,3027.6,3026.1,16.18439699]
[1768924077211,18.59027616,3027.6,3026.1,16.18439699]
[1768924077798,11.98436448,3027.5,3026.1,16.18439699]
[1768924077999,11.98436448,3027.5,3026.1,19.48898044]
[1768924078194,23.805146,3028.0,3026.2,12.87986585]
[1768924078395,12.49136448,3028.1,3026.4,12.87986585]
[1768924078600,12.49136448,3028.1,3026.6,12.87986585]
[1768924079122,3.3025099,3028.0,3026.7,3.30392837]
[1768924079324,3.3025099,3028.0,3026.7,12.87986585]
[1768924080016,11.98436448,3028.6,3026.7,12.87986585]
[1768924080217,11.98436448,3028.6,3026.9,12.87986585]
[1768924080218,13.68980093,3028.5,3026.9,12.87986585]
[1768924080404,1.19843645,3028.5,3026.9,12.87986585]
[1768924080740,11.98436448,3028.5,3027.1,12.87986585]
[1768924080929,11.98436448,3028.5,3027.0,0.511]
[1768924081317,15.28643818,3028.4,3027.1,3.30349179]
[1768924082150,11.98436448,3028.8,3027.2,12.87986585]
[1768924082377,13.18280093,3028.8,3027.4,12.87986585]
[1768924083467,19.78607807,3028.8,3027.4,12.87986585]
[1768924083660,0.001,3027.8,3027.4,12.87986585]
[1768924083965,11.98436448,3028.7,3027.4,12.87986585]
[1768924084166,7.80171359,3028.8,3027.5,1.81317642]
[1768924084167,1.97860781,3028.6,3027.5,1.81317642]
[1768924084367,7.03073667,3029.3,3027.7,12.87986585]
[1768924084368,11.98436448,3029.1,3027.7,12.87986585]
[1768924084535,11.98436448,3029.2,3027.4,19.48618633]
[1768924084734,11.98436448,3028.8,3027.5,0.511]
[1768924084958,11.98436448,3028.8,3027.0,12.87986585]
[1768924085160,11.98436448,3028.6,3027.1,0.511]
[1768924085476,15.28654722,3028.3,3027.1,3.8144768]
[1768924085677,1.19843645,3028.5,3027.2,12.87986585]
[1768924085872,1.19843645,3028.5,3027.1,7.11796859]
[1768924085873,18.58742168,3028.9,3027.3,12.91289858]
[1768924086059,18.58742168,3028.9,3027.3,12.87986585]
[1768924086237,15.28589308,3028.9,3027.4,12.91289749]
[1768924086482,15.28589308,3028.9,3027.4,12.87986585]
[1768924086681,18.58742168,3028.9,3027.4,12.87986585]
[1768924086848,18.58742168,3028.9,3027.5,14.16785244]
[1768924086849,1.90944217,3028.8,3027.5,14.16785244]
[1768924087054,11.98436448,3029.2,3027.6,13.39086585]
[1768924087275,11.98436448,3029.4,3027.6,12.87986585]
[1768924087438,11.98436448,3029.2,3027.7,0.511]
[1768924087774,11.98436448,3029.2,3027.8,0.511]
[1768924088358,12.49136448,3029.2,3027.8,0.511]
[1768924088566,1.90935498,3029.1,3027.8,0.511]
[1768924088766,13.89371946,3029.1,3027.8,0.511]
[1768924088969,3.30109266,3029.3,3027.8,13.39086585]
[1768924089180,11.98436448,3029.5,3027.8,13.39086585]
[1768924089346,11.98436448,3029.2,3027.9,0.511]
[1768924090289,6.60218532,3029.3,3027.4,3.303091]
[1768924090290,11.98436448,3029.0,3027.4,3.303091]
[1768924090446,11.98436448,3029.0,3027.5,3.30303899]
[1768924090779,11.98436448,3028.8,3027.6,0.511]
[1768924091184,11.98436448,3028.7,3027.0,16.18345711]
[1768924091384,15.28643818,3028.4,3027.2,0.511]
[1768924091541,11.98436448,3028.3,3027.2,0.511]
[1768924091899,3.3020737,3028.4,3027.0,0.511]
[1768924091900,13.5130083,3028.2,3027.0,0.511]
[1768924092189,11.98436448,3028.0,3026.6,0.511]
[1768924092342,0.507,3027.9,3026.6,16.69483094]